bitfinex/quotes_BTCUSD_20250129
["timestamp","ask_amount","ask_price","bid_price","bid_amount"]
[1738143764740,0.00029883,102490.0,102480.0,0.68369981]
[1738143766147,0.00029883,102490.0,102480.0,0.68399088]
[1738143766743,0.00029883,102490.0,102480.0,0.65650892]
[1738143768979,0.00029883,102490.0,102480.0,1.51240892]
[1738143770632,0.00029883,102490.0,102480.0,1.60019384]
[1738143771294,0.01257781,102500.0,102490.0,0.226155]
[1738143771480,0.01163126,102500.0,102490.0,2.06052503]
[1738143771687,0.01163126,102500.0,102490.0,2.96899883]
[1738143773106,0.01163126,102500.0,102490.0,2.97299883]
[1738143773930,0.01263126,102500.0,102490.0,2.97599883]
[1738143776943,0.01263126,102500.0,102490.0,2.98560643]
[1738143778187,0.01263126,102500.0,102490.0,2.99408643]
[1738143782270,0.01263126,102500.0,102490.0,2.90580643]
[1738143782476,0.01263126,102500.0,102490.0,2.86678643]
[1738143786530,0.01263126,102500.0,102490.0,2.94378643]
[1738143789734,0.01263126,102500.0,102490.0,2.86678643]
[1738143791805,0.01263126,102500.0,102490.0,2.94888643]
[1738143792408,0.00124538,102510.0,102500.0,0.23412592]
[1738143792679,0.00039336,102510.0,102500.0,0.38921796]
[1738143792902,0.01039336,102510.0,102500.0,0.39424951]
[1738143793136,0.02069219,102510.0,102500.0,0.39424951]
[1738143793574,0.02169219,102510.0,102500.0,0.39724951]
[1738143794087,0.01139336,102510.0,102500.0,0.39724951]
[1738143794675,0.02169219,102510.0,102500.0,0.36983197]
[1738143794878,0.02169219,102510.0,102500.0,0.37283197]
[1738143795566,0.02169219,102510.0,102500.0,0.69483197]
[1738143801387,0.02169219,102510.0,102500.0,0.37283197]
[1738143802138,0.02169219,102510.0,102500.0,0.3925572]
[1738143804328,0.01169219,102510.0,102500.0,0.3925572]
[1738143804534,0.00139336,102510.0,102500.0,0.6223572]
[1738143804736,3.6e-07,102510.0,102500.0,0.71010702]
[1738143804918,3.6e-07,102510.0,102500.0,0.85642446]
[1738143805105,3.6e-07,102510.0,102500.0,0.85656676]
[1738143805759,3.6e-07,102510.0,102500.0,0.85356676]
[1738143806143,3.6e-07,102510.0,102500.0,0.85656676]
[1738143806336,3.6e-07,102510.0,102500.0,0.76881694]
[1738143807010,0.00124559,102530.0,102520.0,0.146312]
[1738143807348,0.00129402,102530.0,102520.0,2.20016561]
[1738143807547,0.00129402,102530.0,102520.0,2.20593942]
[1738143808540,0.00129402,102530.0,102520.0,2.20893942]
[1738143808840,0.00129402,102530.0,102520.0,2.20993942]
[1738143809037,0.00034747,102530.0,102520.0,2.20993942]
[1738143813469,0.00034747,102530.0,102520.0,2.21973976]
[1738143815014,0.00034747,102530.0,102520.0,2.23967612]
[1738143816068,0.00034747,102530.0,102520.0,2.38967612]
[1738143816645,0.00034747,102530.0,102520.0,2.41704546]
[1738143830167,0.14094559,102550.0,102540.0,0.296284]
[1738143830370,0.14099402,102550.0,102540.0,1.46404737]
[1738143830589,0.14099402,102550.0,102540.0,1.53582895]
[1738143830792,4.843e-05,102550.0,102540.0,1.53582895]
[1738143831433,0.00104843,102550.0,102540.0,1.53582895]
[1738143831643,0.00104843,102550.0,102540.0,1.53882895]
[1738143831835,4.843e-05,102550.0,102540.0,1.53882895]
[1738143832063,4.843e-05,102550.0,102540.0,1.53582895]
[1738143832528,0.00104843,102550.0,102540.0,1.54182895]
[1738143833368,0.00104843,102550.0,102540.0,1.54382895]
[1738143834153,0.00104843,102550.0,102540.0,2.39972895]
[1738143835619,0.09731327,102560.0,102550.0,0.14627]
[1738143835812,0.09731327,102560.0,102550.0,0.33153918]
[1738143836015,0.09636688,102560.0,102550.0,0.33305414]
[1738143836978,0.09636688,102560.0,102550.0,0.33405414]
[1738143837394,0.09636688,102560.0,102550.0,0.27649456]
[1738143837600,0.13369883,102560.0,102550.0,0.27849456]
[1738143838214,0.13369883,102560.0,102550.0,0.24802812]
[1738143838437,0.13369883,102560.0,102550.0,0.2784517]
[1738143839961,0.13369883,102560.0,102550.0,0.2826513]
[1738143841074,0.13384113,102560.0,102550.0,0.2826513]
[1738143843293,0.2697973,102560.0,102550.0,0.00871456]
[1738143843550,0.47486854,102560.0,102550.0,0.00871456]
[1738143843755,0.38049572,102560.0,102550.0,0.00871456]
[1738143844277,0.38049572,102560.0,102550.0,0.00771456]
[1738143844523,0.38049572,102560.0,102550.0,0.00571456]
[1738143845418,0.38149572,102560.0,102550.0,0.00571456]
[1738143847185,0.39124909,102560.0,102550.0,0.00571456]
[1738143849049,0.48849225,102560.0,102550.0,0.00571456]
[1738143852559,0.48849225,102560.0,102550.0,0.00601318]
[1738143860615,0.4583689,102560.0,102550.0,0.00601318]
[1738143861624,0.51594397,102560.0,102550.0,0.00601318]
[1738143862061,0.52594397,102560.0,102550.0,0.00601318]
[1738143864540,0.52994397,102560.0,102550.0,0.00601318]
[1738143879582,0.52994397,102560.0,102550.0,0.00659858]
[1738143882195,0.4723689,102560.0,102550.0,0.00659858]
[1738143883008,0.4623689,102560.0,102550.0,0.00659858]
[1738143883209,0.3389689,102560.0,102550.0,0.00659858]
[1738143886517,0.39654397,102560.0,102550.0,0.00659858]
[1738143887160,0.47924397,102560.0,102550.0,0.00659858]
[1738143887647,0.57660073,102560.0,102550.0,0.00659858]
[1738143887823,0.66375441,102560.0,102550.0,0.00659858]
[1738143889602,0.56639765,102560.0,102550.0,0.00659858]
[1738143890658,0.09229598,102560.0,102550.0,0.15286858]
[1738143890857,0.09229598,102560.0,102550.0,0.31922686]
[1738143891083,0.09229598,102560.0,102550.0,0.46135179]
[1738143891286,0.09229598,102560.0,102550.0,0.51892686]
[1738143891485,0.09229598,102560.0,102550.0,0.46135179]
[1738143891875,0.09229598,102560.0,102550.0,0.51892686]
[1738143892234,0.11196286,102560.0,102550.0,0.51892686]
[1738143892431,0.11196286,102560.0,102550.0,0.61617002]
[1738143892651,0.09229598,102560.0,102550.0,0.93817002]
[1738143892945,0.09229598,102560.0,102550.0,0.93893077]
[1738143893150,0.09229598,102560.0,102550.0,0.99650584]
[1738143893355,0.0001423,102560.0,102550.0,0.93893077]
[1738143893814,0.0011423,102560.0,102550.0,0.99650584]
[1738143895155,0.0001423,102560.0,102550.0,0.99650584]
[1738143895328,0.0001423,102560.0,102550.0,0.99950584]
[1738143895552,0.0001423,102560.0,102550.0,1.00050584]
[1738143896708,0.0001423,102560.0,102550.0,0.97300843]
[1738143897560,0.0001423,102560.0,102550.0,0.98144843]
[1738143897778,0.0001423,102560.0,102550.0,1.01050949]
[1738143898612,0.00124543,102570.0,102560.0,0.146255]
[1738143898821,0.00029904,102570.0,102560.0,1.95608435]
[1738143899027,0.00029904,102570.0,102560.0,1.95510961]
[1738143899228,0.00029904,102570.0,102560.0,1.9628838]
[1738143899827,0.00029904,102570.0,102560.0,1.9658838]
[1738143900002,0.00129904,102570.0,102560.0,1.9748838]
[1738143902363,0.00129904,102570.0,102560.0,2.8307838]
[1738143905045,0.01066709,102570.0,102560.0,2.8392238]
[1738143905187,0.01066709,102570.0,102560.0,2.32235927]
[1738143905647,0.01159787,102570.0,102560.0,2.22626654]
[1738143905886,0.00129904,102570.0,102560.0,2.10166654]
[1738143906056,0.01066709,102570.0,102560.0,2.33931927]
[1738143906621,0.02096592,102570.0,102560.0,2.41671927]
[1738143906860,0.01159787,102570.0,102560.0,2.41671927]
[1738143907064,0.02096592,102570.0,102560.0,2.41671927]
[1738143908447,0.02096592,102570.0,102560.0,1.88281927]
[1738143908964,0.00129904,102570.0,102560.0,1.56776654]
[1738143909219,0.00129904,102570.0,102560.0,1.71776654]
[1738143909973,0.00029904,102570.0,102560.0,1.70576654]
[1738143910184,0.00029904,102570.0,102560.0,1.71076654]
[1738143910393,0.00029904,102570.0,102560.0,1.70576654]
[1738143910790,0.00029904,102570.0,102560.0,1.70776654]
[1738143911596,0.00029904,102570.0,102560.0,1.71006516]
[1738143912143,0.00029904,102570.0,102560.0,1.70806516]
[1738143912728,0.00029904,102570.0,102560.0,1.70906516]
[1738143914361,0.01996592,102570.0,102560.0,1.79671789]
[1738143914558,0.01996592,102570.0,102560.0,1.87581789]
[1738143915364,0.01059787,102570.0,102560.0,1.87581789]
[1738143915498,0.01996592,102570.0,102560.0,1.87581789]
[1738143915862,0.00966709,102570.0,102560.0,1.87581789]
[1738143916205,0.00029904,102570.0,102560.0,2.36219921]
[1738143916407,0.00029904,102570.0,102560.0,2.41089921]
[1738143916676,0.00029904,102570.0,102560.0,2.44120103]
[1738143917323,0.01059787,102570.0,102560.0,2.44120103]
[1738143917532,0.00029904,102570.0,102560.0,2.44120103]
[1738143919351,0.01059787,102570.0,102560.0,2.44120103]
[1738143919560,0.00029904,102570.0,102560.0,2.44120103]
[1738143920556,0.00029904,102570.0,102560.0,2.97510103]
[1738143920728,0.02091231,102580.0,102570.0,0.222841]
[1738143920925,0.01996592,102580.0,102570.0,0.43803871]
[1738143921138,0.01996592,102580.0,102570.0,0.4458359]
[1738143922147,0.01996592,102580.0,102570.0,0.35818317]
[1738143922471,0.01996592,102580.0,102570.0,0.28158317]
[1738143922672,0.01059787,102580.0,102570.0,0.28158317]
[1738143922878,0.01059787,102580.0,102570.0,0.29002317]
[1738143923082,0.01159787,102580.0,102570.0,0.25972135]
[1738143923291,0.01159787,102580.0,102570.0,0.29008411]
[1738143923461,0.00129904,102580.0,102570.0,0.16247819]
[1738143923632,0.14752604,102580.0,102570.0,0.15403819]
[1738143923840,0.14652604,102580.0,102570.0,0.15403819]
[1738143924037,0.14752604,102580.0,102570.0,0.15403819]
[1738143924487,0.14652604,102580.0,102570.0,0.15403819]
[1738143924688,0.14652604,102580.0,102570.0,0.00779719]
[1738143924834,0.19422604,102580.0,102570.0,0.00779719]
[1738143925841,0.19522604,102580.0,102570.0,0.00779719]
[1738143926470,0.19522604,102580.0,102570.0,0.15403819]
[1738143927497,0.27822604,102580.0,102570.0,0.00779719]
[1738143928680,0.27822604,102580.0,102570.0,0.15403819]
[1738143928891,0.00129904,102580.0,102570.0,0.15403819]
[1738143929090,0.14752604,102580.0,102570.0,0.15403819]
[1738143930565,0.00129904,102580.0,102570.0,0.15403819]
[1738143932016,0.14752604,102580.0,102570.0,0.15403819]
[1738143932969,0.19402604,102580.0,102570.0,0.00779719]
[1738143933179,0.27572604,102580.0,102570.0,0.00779719]
[1738143933620,0.27572604,102580.0,102570.0,0.15403819]
[1738143934045,0.12949904,102580.0,102570.0,0.15403819]
[1738143934475,0.27572604,102580.0,102570.0,0.15403819]
[1738143942771,0.27572604,102580.0,102570.0,0.146241]
[1738143943016,0.27572604,102580.0,102570.0,0.15275836]
[1738143946404,0.27572604,102580.0,102570.0,0.15305698]
[1738143955840,0.14752604,102580.0,102570.0,0.15305698]
[1738143956414,0.14752604,102580.0,102570.0,0.18351382]
[1738143965750,0.14752604,102580.0,102570.0,0.03727282]
[1738143965751,0.20506271,102580.0,102570.0,0.03727282]
[1738143965968,0.3669369,102580.0,102570.0,0.03727282]
[1738143966850,0.3669369,102580.0,102570.0,0.00681598]
[1738143967055,0.28776271,102580.0,102570.0,0.00681598]
[1738143967267,0.23022604,102580.0,102570.0,0.00681598]
[1738143969122,0.28776271,102580.0,102570.0,0.00681598]
[1738143973312,0.23022604,102580.0,102570.0,0.00681598]
[1738143974085,0.28776271,102580.0,102570.0,0.00681598]
[1738143974761,0.44265614,102580.0,102570.0,0.00681598]
[1738143974971,0.48865614,102580.0,102570.0,0.00681598]
[1738143976044,0.5958993,102580.0,102570.0,0.01677598]
[1738143976280,0.60686528,102580.0,102570.0,0.01677598]
[1738143977051,0.95426528,102580.0,102570.0,0.01677598]
[1738143977436,1.11626528,102580.0,102570.0,0.01677598]
[1738143977952,1.12126528,102580.0,102570.0,0.01677598]
[1738143978153,1.26195563,102580.0,102570.0,0.01677598]
[1738143978360,1.24095563,102580.0,102570.0,0.01677598]
[1738143978546,1.24995563,102580.0,102570.0,0.01777598]
[1738143978744,1.2468428,102580.0,102570.0,0.01677598]
[1738143978943,0.9235194,102580.0,102570.0,7.8e-07]
[1738143979176,0.9235194,102580.0,102570.0,0.00486065]
[1738143979386,0.339241,102570.0,102560.0,0.00029862]
[1738143979590,0.8400381,102570.0,102560.0,0.00029862]
[1738143979768,1.1684381,102570.0,102560.0,0.00029862]
[1738143980206,1.08068951,102570.0,102560.0,0.00029862]
[1738143980594,1.06768951,102570.0,102560.0,0.00129862]
[1738143980797,1.06468951,102570.0,102560.0,0.00129862]
[1738143981006,1.07468951,102570.0,102560.0,0.00129862]
[1738143981345,1.06717389,102570.0,102560.0,0.00129862]
[1738143981566,1.07717389,102570.0,102560.0,0.00129862]
[1738143981776,1.06717389,102570.0,102560.0,0.00129862]
[1738143981976,1.07717389,102570.0,102560.0,0.00129862]
[1738143982580,1.16492248,102570.0,102560.0,0.00129862]
[1738143982780,1.07717389,102570.0,102560.0,0.00129862]
[1738143983223,1.16492248,102570.0,102560.0,0.00129862]
[1738143986394,1.25207616,102570.0,102560.0,0.00129862]
[1738143987883,1.16432757,102570.0,102560.0,0.00129862]
[1738143988888,1.07717389,102570.0,102560.0,0.00129862]
[1738143989717,1.05717389,102570.0,102560.0,0.00129862]
[1738143990145,1.07717389,102570.0,102560.0,0.00129862]
[1738143992050,1.16432757,102570.0,102560.0,0.00129862]
[1738143995102,1.07717389,102570.0,102560.0,0.00129862]
[1738144000839,1.04699852,102570.0,102560.0,0.00129862]
[1738144004294,1.04714082,102570.0,102560.0,0.00129862]
[1738144005441,1.02714082,102570.0,102560.0,0.00129862]
[1738144005558,1.04714082,102570.0,102560.0,0.00129862]
[1738144005965,0.63908406,102570.0,102560.0,0.00129862]
[1738144006170,0.58151084,102570.0,102560.0,0.00129862]
[1738144006375,0.63908406,102570.0,102560.0,0.00129862]
[1738144006821,0.58151084,102570.0,102560.0,0.00129862]
[1738144007042,0.63908406,102570.0,102560.0,0.00129862]
[1738144010118,0.48426768,102570.0,102560.0,0.00129862]
[1738144010355,0.15586768,102570.0,102560.0,0.08329862]
[1738144011232,0.2134409,102570.0,102560.0,0.08329862]
[1738144015135,0.15586768,102570.0,102560.0,0.08329862]
[1738144023169,0.2134409,102570.0,102560.0,0.08329862]
[1738144023369,0.2134409,102570.0,102560.0,0.00129862]
[1738144023596,0.31079766,102570.0,102560.0,0.00129862]
[1738144024770,0.2134409,102570.0,102560.0,0.00129862]
[1738144024975,0.31068406,102570.0,102560.0,0.00129862]
[1738144025179,0.39048406,102570.0,102560.0,0.00129862]
[1738144029498,0.44805728,102570.0,102560.0,0.00129862]
[1738144030123,0.45805728,102570.0,102560.0,0.00129862]
[1738144030385,0.55541404,102570.0,102560.0,0.00129862]
[1738144031212,0.49784082,102570.0,102560.0,0.00129862]
[1738144031629,0.40048406,102570.0,102560.0,0.00129862]
[1738144032248,0.42010863,102570.0,102560.0,0.00129862]
[1738144033288,0.74850863,102570.0,102560.0,0.00129862]
[1738144034498,0.80608185,102570.0,102560.0,0.00129862]
[1738144034827,0.89323553,102570.0,102560.0,0.00129862]
[1738144035043,0.99059229,102570.0,102560.0,0.00129862]
[1738144035255,0.93301907,102570.0,102560.0,0.00129862]
[1738144037775,0.99059229,102570.0,102560.0,0.00129862]
[1738144038467,0.179255,102560.0,102550.0,2.4e-07]
[1738144038757,0.146312,102520.0,102510.0,0.0001423]
[1738144038988,0.26145844,102520.0,102510.0,0.0001423]
[1738144039220,0.3587016,102520.0,102510.0,0.0001423]
[1738144039427,0.42627482,102520.0,102510.0,0.0001423]
[1738144039651,0.57437482,102520.0,102510.0,0.0001423]
[1738144039847,0.82173158,102520.0,102510.0,0.0001423]
[1738144040053,0.84473158,102520.0,102510.0,0.00019073]
[1738144040254,0.87018972,102520.0,102510.0,0.00019073]
[1738144040486,0.88598193,102520.0,102510.0,0.00019073]
[1738144040759,0.88899769,102520.0,102510.0,0.00019073]
[1738144040972,0.86899769,102520.0,102510.0,0.00019073]
[1738144041184,0.74941633,102520.0,102510.0,0.00019073]
[1738144041435,0.77941633,102520.0,102510.0,0.00019073]
[1738144041662,0.76241633,102520.0,102510.0,0.00019073]
[1738144042307,0.76141633,102520.0,102510.0,0.00019073]
[1738144042906,0.777168,102520.0,102510.0,0.00119073]
[1738144043998,0.86503571,102520.0,102510.0,0.00119073]
[1738144045205,0.777168,102520.0,102510.0,0.00119073]
[1738144045443,0.787168,102520.0,102510.0,0.00119073]
[1738144045664,0.626068,102520.0,102510.0,0.00119073]
[1738144045885,0.616068,102520.0,102510.0,0.00119073]
[1738144046758,0.646068,102520.0,102510.0,0.00119073]
[1738144047846,0.73288008,102520.0,102510.0,0.00119073]
[1738144048062,0.72288008,102520.0,102510.0,0.00119073]
[1738144048478,0.71488008,102520.0,102510.0,0.00019073]
[1738144048701,0.71788008,102520.0,102510.0,0.00019073]
[1738144048900,0.72688008,102520.0,102510.0,0.00119073]
[1738144049325,0.72388008,102520.0,102510.0,0.00119073]
[1738144049532,0.72688008,102520.0,102510.0,0.00119073]
[1738144050081,0.73688008,102520.0,102510.0,0.00119073]
[1738144050521,0.72688008,102520.0,102510.0,0.00119073]
[1738144050737,0.71688008,102520.0,102510.0,0.00119073]
[1738144050936,0.73688008,102520.0,102510.0,0.00119073]
[1738144052636,0.660068,102520.0,102510.0,0.00119073]
[1738144053037,0.650068,102520.0,102510.0,0.00119073]
[1738144053268,0.660068,102520.0,102510.0,0.00119073]
[1738144053494,0.630068,102520.0,102510.0,0.00119073]
[1738144053720,0.640068,102520.0,102510.0,0.00119073]
[1738144055209,0.480068,102520.0,102510.0,0.00119073]
[1738144055438,0.38271124,102520.0,102510.0,0.00119073]
[1738144056992,0.71111124,102520.0,102510.0,0.00119073]
[1738144061007,0.69157454,102520.0,102510.0,0.00119073]
[1738144061218,0.69157454,102520.0,102510.0,0.04889073]
[1738144061219,0.60370683,102520.0,102510.0,0.04889073]
[1738144061450,0.59395516,102520.0,102510.0,0.04889073]
[1738144061668,0.496712,102520.0,102510.0,0.27231773]
[1738144062590,0.487712,102520.0,102510.0,0.27131773]
[1738144063035,0.3474,102520.0,102510.0,0.27131773]
[1738144063230,0.493712,102520.0,102510.0,0.27131773]
[1738144063679,0.490712,102520.0,102510.0,0.27131773]
[1738144064108,0.493712,102520.0,102510.0,0.27131773]
[1738144064343,0.3474,102520.0,102510.0,0.27131773]
[1738144064551,0.490712,102520.0,102510.0,0.27131773]
[1738144064760,0.492712,102520.0,102510.0,0.27131773]
[1738144065905,0.018,102520.0,102510.0,0.27131773]
[1738144066170,0.02736805,102520.0,102510.0,0.27131773]
[1738144066384,0.018,102520.0,102510.0,0.27131773]
[1738144066833,0.164312,102520.0,102510.0,0.27131773]
[1738144067032,0.162312,102520.0,102510.0,0.27131773]
[1738144067455,0.157312,102520.0,102510.0,0.27131773]
[1738144067770,0.160312,102520.0,102510.0,0.27131773]
[1738144069417,0.160312,102520.0,102510.0,0.12499073]
[1738144070862,0.160312,102520.0,102510.0,0.27131773]
[1738144071095,0.42398018,102520.0,102510.0,0.00019073]
[1738144071320,0.50008018,102520.0,102510.0,0.00019073]
[1738144072509,0.54888018,102520.0,102510.0,0.00019073]
[1738144073647,0.63569226,102520.0,102510.0,0.00019073]
[1738144075438,0.54888018,102520.0,102510.0,0.00019073]
[1738144076820,0.54788018,102520.0,102510.0,0.00019073]
[1738144077047,0.55465477,102520.0,102510.0,0.00019073]
[1738144077259,0.55765477,102520.0,102510.0,0.00019073]
[1738144077417,0.56665477,102520.0,102510.0,0.00019073]
[1738144077857,0.48809746,102520.0,102510.0,0.00019073]
[1738144078269,0.48509746,102520.0,102510.0,0.00019073]
[1738144078486,0.48809746,102520.0,102510.0,0.00019073]
[1738144078923,0.50755488,102520.0,102510.0,0.00019073]
[1738144082336,0.38265488,102520.0,102510.0,0.00019073]
[1738144082762,0.168312,102520.0,102510.0,0.00019073]
[1738144083184,0.25617971,102520.0,102510.0,0.00019073]
[1738144085396,0.34339078,102520.0,102510.0,0.00019073]
[1738144093083,0.25552307,102520.0,102510.0,0.07699073]
[1738144094438,0.34339078,102520.0,102510.0,0.07699073]
[1738144095280,0.25552307,102520.0,102510.0,0.07699073]
[1738144096034,0.25552307,102520.0,102510.0,0.00019073]
[1738144096217,0.34339078,102520.0,102510.0,0.00019073]
[1738144097157,0.25552307,102520.0,102510.0,0.00019073]
[1738144097481,0.24552307,102520.0,102510.0,0.00019073]
[1738144112377,0.09921107,102520.0,102510.0,0.14651773]
[1738144112588,0.11887795,102520.0,102510.0,0.42219322]
[1738144112802,0.26518995,102520.0,102510.0,0.42121773]
[1738144113014,0.2558219,102520.0,102510.0,0.42587236]
[1738144113247,0.2528219,102520.0,102510.0,0.42587236]
[1738144114399,0.10687795,102520.0,102510.0,0.42587236]
[1738144114607,0.17797888,102520.0,102510.0,0.42587236]
[1738144115005,0.01966688,102520.0,102510.0,0.42587236]
[1738144115212,0.02266688,102520.0,102510.0,0.45633703]
[1738144115422,0.003,102520.0,102510.0,0.55358019]
[1738144115629,0.01336805,102520.0,102510.0,0.6414479]
[1738144115859,0.02366688,102520.0,102510.0,0.55358019]
[1738144116282,0.004,102520.0,102510.0,0.55358019]
[1738144116489,0.01336805,102520.0,102510.0,0.87558019]
[1738144116695,0.01336805,102520.0,102510.0,0.87603068]
[1738144117781,0.02366688,102520.0,102510.0,0.87603068]
[1738144119725,0.16061083,102520.0,102510.0,0.77878752]
[1738144120165,0.16061083,102520.0,102510.0,0.74832285]
[1738144122396,0.16061083,102520.0,102510.0,0.42632285]
[1738144128419,0.16061083,102520.0,102510.0,0.27999585]
[1738144128638,0.16061083,102520.0,102510.0,0.15529585]
[1738144128868,0.150312,102520.0,102510.0,0.15529585]
[1738144129469,0.150312,102520.0,102510.0,0.00529585]
[1738144133072,0.150312,102520.0,102510.0,0.15162285]
[1738144133277,0.150312,102520.0,102510.0,0.00529585]
[1738144136774,0.150312,102520.0,102510.0,0.15162285]
[1738144140570,0.15968005,102520.0,102510.0,0.15162285]
[1738144141748,0.150312,102520.0,102510.0,0.15162285]
[1738144142811,0.150312,102520.0,102510.0,0.14662285]
[1738144143017,0.150312,102520.0,102510.0,0.1494186]
[1738144143221,0.150312,102520.0,102510.0,0.15065885]
[1738144144326,0.150312,102520.0,102510.0,0.00433185]
[1738144145547,0.150312,102520.0,102510.0,0.15065885]
[1738144147749,0.23752307,102520.0,102510.0,0.15065885]
[1738144150488,0.24689112,102520.0,102510.0,0.15065885]
[1738144151172,0.23752307,102520.0,102510.0,0.15065885]
[1738144151342,0.24689112,102520.0,102510.0,0.15065885]
[1738144151553,0.23752307,102520.0,102510.0,0.15065885]
[1738144151761,0.24689112,102520.0,102510.0,0.15065885]
[1738144151962,0.24689112,102520.0,102510.0,0.15283127]
[1738144152221,0.15968005,102520.0,102510.0,0.15283127]
[1738144152393,0.01336805,102520.0,102510.0,0.30380671]
[1738144152562,0.01336805,102520.0,102510.0,0.38443127]
[1738144152739,0.004,102520.0,102510.0,0.41491071]
[1738144153149,0.01336805,102520.0,102510.0,0.41491071]
[1738144153348,0.004,102520.0,102510.0,0.41491071]
[1738144153661,0.01336805,102520.0,102510.0,0.41491071]
[1738144154245,0.02366688,102520.0,102510.0,0.51215387]
[1738144154447,0.01336805,102520.0,102510.0,0.6180591]
[1738144154659,0.01336805,102520.0,102510.0,0.6182014]
[1738144154924,0.01366688,102520.0,102510.0,0.62778533]
[1738144155605,0.00429883,102520.0,102510.0,0.94978533]
[1738144157165,0.01366688,102520.0,102510.0,0.8921801]
[1738144157382,0.17027771,102520.0,102510.0,0.65545301]
[1738144161037,0.17027771,102520.0,102510.0,0.33345301]
[1738144161284,0.02396571,102520.0,102510.0,0.33345301]
[1738144161494,0.01459766,102520.0,102510.0,0.33345301]
[1738144161695,0.01459766,102520.0,102510.0,0.37965301]
[1738144161908,0.02396571,102520.0,102510.0,0.37965301]
[1738144162113,0.01459766,102520.0,102510.0,0.37965301]
[1738144162326,0.02396571,102520.0,102510.0,0.37965301]
[1738144162714,0.01459766,102520.0,102510.0,0.37965301]
[1738144163148,0.01459766,102520.0,102510.0,0.47689617]
[1738144163149,0.02396571,102520.0,102510.0,0.47689617]
[1738144163595,0.01459766,102520.0,102510.0,0.56467173]
[1738144163847,0.01459766,102520.0,102510.0,0.64157173]
[1738144164067,0.01459766,102520.0,102510.0,0.55379617]
[1738144165846,0.01459766,102520.0,102510.0,0.43069617]
[1738144166042,0.02396571,102520.0,102510.0,0.33345301]
[1738144166267,0.17027771,102520.0,102510.0,0.33345301]
[1738144166513,0.02396571,102520.0,102510.0,0.33345301]
[1738144167727,0.16090966,102520.0,102510.0,0.33345301]
[1738144167929,0.16090966,102520.0,102510.0,0.15664657]
[1738144168128,0.20950966,102520.0,102510.0,0.15664657]
[1738144168734,0.19921083,102520.0,102510.0,0.15664657]
[1738144171802,0.2864219,102520.0,102510.0,0.15664657]
[1738144173762,0.2864219,102520.0,102510.0,0.00664657]
[1738144174207,0.45449746,102520.0,102510.0,0.00664657]
[1738144174637,0.3667219,102520.0,102510.0,0.00664657]
[1738144184260,0.2378219,102520.0,102510.0,0.00664657]
[1738144188173,0.37713153,102520.0,102510.0,0.00664657]
[1738144189094,0.53209792,102520.0,102510.0,0.00664657]
[1738144189325,0.53209792,102520.0,102510.0,0.0044838]
[1738144190533,0.48384116,102520.0,102510.0,0.0044838]
[1738144191158,0.42623153,102520.0,102510.0,0.0044838]
[1738144192173,0.48384116,102520.0,102510.0,0.0044838]
[1738144193023,0.58108432,102520.0,102510.0,0.0044838]
[1738144193584,0.49387325,102520.0,102510.0,0.0044838]
[1738144197699,0.49351029,102520.0,102510.0,0.0044838]
[1738144198133,0.16600788,102500.0,102490.0,0.34514]
[1738144198356,0.01966688,102500.0,102490.0,0.39248843]
[1738144198560,0.01966688,102500.0,102490.0,0.47108843]
[1738144199639,0.01966688,102500.0,102490.0,0.50154059]
[1738144199867,0.01966688,102500.0,102490.0,0.50354059]
[1738144200783,0.01966688,102500.0,102490.0,0.50554059]
[1738144202467,0.01966688,102500.0,102490.0,0.50568289]
[1738144204056,0.01029883,102500.0,102490.0,0.66053568]
[1738144204283,0.02061341,102510.0,102490.0,0.66053568]
[1738144204525,0.02061341,102510.0,102500.0,0.57606921]
[1738144204736,0.02061341,102510.0,102500.0,1.58804014]
[1738144204946,0.02061341,102510.0,102500.0,1.53043051]
[1738144205586,0.02061341,102510.0,102500.0,1.85243051]
[1738144206054,0.02061341,102510.0,102500.0,1.43218951]
[1738144206276,0.02061341,102510.0,102500.0,0.322]
[1738144206277,0.20488316,102510.0,102500.0,0.322]
[1738144206489,0.15663983,102500.0,102490.0,0.00019073]
[1738144206703,0.21424946,102500.0,102490.0,0.00119073]
[1738144206920,0.30856026,102500.0,102490.0,0.00119073]
[1738144207137,0.30856026,102500.0,102490.0,0.00019073]
[1738144207138,0.38596026,102500.0,102490.0,0.00019073]
[1738144208181,0.38596026,102500.0,102490.0,0.00319073]
[1738144208650,0.35858218,102500.0,102490.0,0.00319073]
[1738144209474,0.35858218,102500.0,102490.0,0.00119073]
[1738144209711,0.35858218,102500.0,102490.0,0.00219073]
[1738144209929,0.36822059,102500.0,102490.0,0.00219073]
[1738144210756,0.35858218,102500.0,102490.0,0.00219073]
[1738144211588,0.44588495,102500.0,102490.0,0.00219073]
[1738144213173,0.44588495,102500.0,102490.0,0.00019073]
[1738144213381,0.44988495,102500.0,102490.0,0.00019073]
[1738144214783,0.45018378,102500.0,102490.0,0.00019073]
[1738144222863,0.54742694,102500.0,102490.0,0.00019073]
[1738144223057,0.6447837,102500.0,102490.0,0.00019073]
[1738144226466,0.9731837,102500.0,102490.0,0.00019073]
[1738144226617,0.88588093,102500.0,102490.0,0.00019073]
[1738144228720,0.91335481,102500.0,102490.0,0.00019073]
[1738144229573,0.81599805,102500.0,102490.0,0.00019073]
[1738144231903,0.81599805,102500.0,102490.0,0.00138088]
[1738144232107,0.81599805,102500.0,102490.0,0.01040685]
[1738144236917,0.90312082,102500.0,102490.0,0.01040685]
[1738144237788,0.77872082,102500.0,102490.0,0.01040685]
[1738144237991,0.72106329,102500.0,102490.0,0.01040685]
[1738144238208,0.39266329,102500.0,102490.0,0.01040685]
[1738144238393,0.45032082,102500.0,102490.0,0.01040685]
[1738144238864,0.39266329,102500.0,102490.0,0.01040685]
[1738144239082,0.2377626,102500.0,102490.0,0.15676185]
[1738144239298,0.2377626,102500.0,102490.0,0.23386185]
[1738144239510,0.2377626,102500.0,102490.0,0.27886185]
[1738144242269,0.15063983,102500.0,102490.0,0.27886185]
[1738144243059,0.01459766,102500.0,102490.0,0.27886185]
[1738144243260,0.16093866,102500.0,102490.0,0.27886185]
[1738144243516,0.01366688,102500.0,102490.0,0.27886185]
[1738144246620,0.16000788,102500.0,102490.0,0.27886185]
[1738144248995,0.02296571,102500.0,102490.0,0.27886185]
[1738144249208,0.01266688,102500.0,102490.0,0.27886185]
[1738144249386,0.16000788,102500.0,102490.0,0.27886185]
[1738144249898,0.15900788,102500.0,102490.0,0.27886185]
[1738144250116,0.15600788,102500.0,102490.0,0.27986185]
[1738144250513,0.15600788,102500.0,102490.0,0.28086185]
[1738144251715,0.16630671,102500.0,102490.0,0.28086185]
[1738144252114,0.15600788,102500.0,102490.0,0.28086185]
[1738144252354,0.16630671,102500.0,102490.0,0.28086185]
[1738144254716,0.15600788,102500.0,102490.0,0.28086185]
[1738144256014,0.01996571,102500.0,102490.0,0.28086185]
[1738144256458,0.16630671,102500.0,102490.0,0.28086185]
[1738144256790,0.01996571,102500.0,102490.0,0.28086185]
[1738144257000,0.00966688,102500.0,102490.0,0.28086185]
[1738144257678,0.01996571,102500.0,102490.0,0.28086185]
[1738144259087,0.00966688,102500.0,102490.0,0.28086185]